[Event "January 9 Early 2024"]
[Site "https://www.chess.com"]
[Date "2024.01.11"]
[Round "3"]
[White "Trost, Edvin"]
[Black "Leschinsky, Gary"]
[Result "1-0"]
[Board "322"]
[TimeControl "180+1"]
[WhiteFideId "1729519"]
[BlackFideId "30951321"]
[WhiteElo "2615"]
[BlackElo "2416"]
[WhiteTeam "SWE"]
[BlackTeam "USA"]
[WhiteClock "0:00:09"]
[BlackClock "0:00:05"]

1. e4 {[%clk 0:03:00]}  c5 {[%clk 0:02:59]} 2. Nf3 {[%clk 0:03:00]}  d6 {[%clk 0:02:57]} 3. d4 {[%clk 0:02:54]}  cxd4 {[%clk 0:02:46]} 4. Bb5+ {[%clk 0:02:53]}  Bd7 {[%clk 0:02:38]} 5. Bxd7+ {[%clk 0:02:52]}  Qxd7 {[%clk 0:02:39]} 6. O-O {[%clk 0:02:46]}  Nf6 {[%clk 0:02:32]} 7. Nxd4 {[%clk 0:02:46]}  Nc6 {[%clk 0:02:15]} 8. f3 {[%clk 0:02:17]}  g6 {[%clk 0:02:05]} 9. Be3 {[%clk 0:02:15]}  Bg7 {[%clk 0:02:05]} 10. c4 {[%clk 0:02:16]}  O-O {[%clk 0:02:04]} 11. Nc3 {[%clk 0:02:15]}  a6 {[%clk 0:02:02]} 12. Qd3 {[%clk 0:02:15]}  Rfc8 {[%clk 0:01:59]} 13. b3 {[%clk 0:02:06]}  Rab8 {[%clk 0:01:49]} 14. Rac1 {[%clk 0:02:05]}  e6 {[%clk 0:01:40]} 15. Rfd1 {[%clk 0:01:57]}  d5 {[%clk 0:01:18]} 16. cxd5 {[%clk 0:01:48]}  exd5 {[%clk 0:01:19]} 17. Nxc6 {[%clk 0:01:49]}  bxc6 {[%clk 0:01:11]} 18. exd5 {[%clk 0:01:28]}  Nxd5 {[%clk 0:01:08]} 19. Nxd5 {[%clk 0:01:29]}  cxd5 {[%clk 0:01:07]} 20. Qxd5 {[%clk 0:01:26]}  Qe7 {[%clk 0:00:54]} 21. Bc5 {[%clk 0:01:17]}  Qe2 {[%clk 0:00:52]} 22. Rd2 {[%clk 0:01:15]}  Rxc5 {[%clk 0:00:38]} 23. Rxe2 {[%clk 0:00:26]}  Rxd5 {[%clk 0:00:37]} 24. g3 {[%clk 0:00:27]}  h5 {[%clk 0:00:31]} 25. Rc6 {[%clk 0:00:28]}  a5 {[%clk 0:00:31]} 26. Kg2 {[%clk 0:00:28]}  Rbd8 {[%clk 0:00:28]} 27. Rcc2 {[%clk 0:00:26]}  Ra8 {[%clk 0:00:26]} 28. Re4 {[%clk 0:00:26]}  Rd3 {[%clk 0:00:22]} 29. Ra4 {[%clk 0:00:22]}  Bc3 {[%clk 0:00:20]} 30. f4 {[%clk 0:00:21]}  Bb4 {[%clk 0:00:20]} 31. Kh3 {[%clk 0:00:20]}  Re8 {[%clk 0:00:18]} 32. a3 {[%clk 0:00:20]}  Be1 {[%clk 0:00:18]} 33. Rb2 {[%clk 0:00:20]}  Rb8 {[%clk 0:00:17]} 34. b4 {[%clk 0:00:19]}  axb4 {[%clk 0:00:18]} 35. axb4 {[%clk 0:00:20]}  Rd4 {[%clk 0:00:18]} 36. Ra1 {[%clk 0:00:21]}  Bxb4 {[%clk 0:00:17]} 37. Rab1 {[%clk 0:00:21]}  Kg7 {[%clk 0:00:18]} 38. Rb3 {[%clk 0:00:22]}  Kf6 {[%clk 0:00:18]} 39. R3b2 {[%clk 0:00:20]}  Ke7 {[%clk 0:00:18]} 40. Kh4 {[%clk 0:00:19]}  f6 {[%clk 0:00:16]} 41. Kh3 {[%clk 0:00:17]}  Kd6 {[%clk 0:00:15]} 42. Re2 {[%clk 0:00:15]}  Kd7 {[%clk 0:00:13]} 43. Reb2 {[%clk 0:00:15]}  Kc8 {[%clk 0:00:13]} 44. Rc2+ {[%clk 0:00:15]}  Kd8 {[%clk 0:00:09]} 45. Rc6 {[%clk 0:00:11]}  Rd6 {[%clk 0:00:07]} 46. Rxb4 {[%clk 0:00:10]}  Rxc6 {[%clk 0:00:08]} 47. Rxb8+ {[%clk 0:00:10]}  Ke7 {[%clk 0:00:08]} 48. Rb7+ {[%clk 0:00:10]}  Ke6 {[%clk 0:00:09]} 49. Rb5 {[%clk 0:00:10]}  f5 {[%clk 0:00:08]} 50. Rb7 {[%clk 0:00:10]}  Kf6 {[%clk 0:00:09]} 51. Rb2 {[%clk 0:00:10]}  Rd6 {[%clk 0:00:09]} 52. Rc2 {[%clk 0:00:10]}  Re6 {[%clk 0:00:10]} 53. Rd2 {[%clk 0:00:11]}  Rc6 {[%clk 0:00:10]} 54. Kh4 {[%clk 0:00:11]}  Re6 {[%clk 0:00:11]} 55. Rd8 {[%clk 0:00:11]}  Re7 {[%clk 0:00:10]} 56. Rf8+ {[%clk 0:00:11]}  Kg7 {[%clk 0:00:10]} 57. Rc8 {[%clk 0:00:11]}  Re2 {[%clk 0:00:10]} 58. h3 {[%clk 0:00:10]}  Re3 {[%clk 0:00:11]} 59. Rc6 {[%clk 0:00:10]}  Kf7 {[%clk 0:00:09]} 60. Rb6 {[%clk 0:00:09]}  Kg7 {[%clk 0:00:10]} 61. Rb2 {[%clk 0:00:10]}  Kf7 {[%clk 0:00:10]} 62. Rg2 {[%clk 0:00:10]}  Kg7 {[%clk 0:00:10]} 63. Kg5 {[%clk 0:00:11]}  Kf7 {[%clk 0:00:09]} 64. Rg1 {[%clk 0:00:11]}  Kg7 {[%clk 0:00:09]} 65. Kh4 {[%clk 0:00:07]}  Kf7 {[%clk 0:00:10]} 66. Rc1 {[%clk 0:00:08]}  Kg7 {[%clk 0:00:08]} 67. Rb1 {[%clk 0:00:08]}  Kf6 {[%clk 0:00:08]} 68. Rb7 {[%clk 0:00:08]}  Rd3 {[%clk 0:00:07]} 69. Ra7 {[%clk 0:00:06]}  Re3 {[%clk 0:00:07]} 70. Ra6+ {[%clk 0:00:03]}  Kf7 {[%clk 0:00:07]} 71. Ra8 {[%clk 0:00:03]}  Rd3 {[%clk 0:00:07]} 72. Rh8 {[%clk 0:00:04]}  Re3 {[%clk 0:00:07]} 73. Rh7+ {[%clk 0:00:04]}  Kf6 {[%clk 0:00:08]} 74. Rd7 {[%clk 0:00:04]}  Rc3 {[%clk 0:00:08]} 75. Rd6+ {[%clk 0:00:04]}  Kf7 {[%clk 0:00:08]} 76. Rb6 {[%clk 0:00:04]}  Re3 {[%clk 0:00:09]} 77. Ra6 {[%clk 0:00:04]}  Rf3 {[%clk 0:00:09]} 78. Rc6 {[%clk 0:00:05]}  Re3 {[%clk 0:00:10]} 79. Rd6 {[%clk 0:00:05]}  Rf3 {[%clk 0:00:10]} 80. Rd7+ {[%clk 0:00:05]}  Kf6 {[%clk 0:00:11]} 81. Rd8 {[%clk 0:00:05]}  Re3 {[%clk 0:00:10]} 82. Rf8+ {[%clk 0:00:05]}  Kg7 {[%clk 0:00:10]} 83. Rd8 {[%clk 0:00:05]}  Kf6 {[%clk 0:00:10]} 84. Rb8 {[%clk 0:00:04]}  Rd3 {[%clk 0:00:10]} 85. Rb6+ {[%clk 0:00:04]}  Kf7 {[%clk 0:00:10]} 86. Ra6 {[%clk 0:00:03]}  Re3 {[%clk 0:00:11]} 87. g4 {[%clk 0:00:03]}  hxg4 {[%clk 0:00:10]} 88. hxg4 {[%clk 0:00:04]}  fxg4 {[%clk 0:00:10]} 89. Kxg4 {[%clk 0:00:05]}  Re6 {[%clk 0:00:10]} 90. Ra7+ {[%clk 0:00:05]}  Kf6 {[%clk 0:00:11]} 91. Ra8 {[%clk 0:00:05]}  Re4 {[%clk 0:00:08]} 92. Rf8+ {[%clk 0:00:05]}  Kg7 {[%clk 0:00:09]} 93. Rc8 {[%clk 0:00:05]}  Rb4 {[%clk 0:00:09]} 94. Rc5 {[%clk 0:00:06]}  Rb6 {[%clk 0:00:09]} 95. Kg5 {[%clk 0:00:06]}  Rb7 {[%clk 0:00:10]} 96. Rc6 {[%clk 0:00:06]}  Rb5+ {[%clk 0:00:10]} 97. Kg4 {[%clk 0:00:06]}  Rb7 {[%clk 0:00:11]} 98. Ra6 {[%clk 0:00:07]}  Rf7 {[%clk 0:00:10]} 99. Kg5 {[%clk 0:00:06]}  Rf5+ {[%clk 0:00:11]} 100. Kg4 {[%clk 0:00:07]}  Kh6 {[%clk 0:00:11]} 101. Ra7 {[%clk 0:00:06]}  Rc5 {[%clk 0:00:10]} 102. Ra8 {[%clk 0:00:06]}  Rc1 {[%clk 0:00:09]} 103. Rh8+ {[%clk 0:00:07]}  Kg7 {[%clk 0:00:10]} 104. Rd8 {[%clk 0:00:08]}  Rg1+ {[%clk 0:00:09]} 105. Kf3 {[%clk 0:00:08]}  Kf6 {[%clk 0:00:10]} 106. Rd6+ {[%clk 0:00:08]}  Kf7 {[%clk 0:00:10]} 107. Ra6 {[%clk 0:00:07]}  Rc1 {[%clk 0:00:09]} 108. Kg4 {[%clk 0:00:07]}  Rg1+ {[%clk 0:00:09]} 109. Kh4 {[%clk 0:00:07]}  Rg2 {[%clk 0:00:09]} 110. Ra8 {[%clk 0:00:06]}  Ke6 {[%clk 0:00:08]} 111. Rf8 {[%clk 0:00:06]}  Rg1 {[%clk 0:00:07]} 112. Rg8 {[%clk 0:00:06]}  Kf5 {[%clk 0:00:07]} 113. Rf8+ {[%clk 0:00:06]}  Ke4 {[%clk 0:00:07]} 114. Kh3 {[%clk 0:00:07]}  Rf1 {[%clk 0:00:06]} 115. Kg3 {[%clk 0:00:07]}  Rg1+ {[%clk 0:00:06]} 116. Kf2 {[%clk 0:00:07]}  Rg4 {[%clk 0:00:05]} 117. Rg8 {[%clk 0:00:06]}  Rxf4+ {[%clk 0:00:05]} 118. Kg3 {[%clk 0:00:07]}  Rf6 {[%clk 0:00:06]} 119. Kg4 {[%clk 0:00:07]}  Ke5 {[%clk 0:00:05]} 120. Kg5 {[%clk 0:00:08]}  Rf5+ {[%clk 0:00:05]} 121. Kxg6 {[%clk 0:00:08]}  Rf1 {[%clk 0:00:05]} 122. Re8+ {[%clk 0:00:07]}  Kd6 {[%clk 0:00:06]} 123. Ra8 {[%clk 0:00:08]}  Kc7 {[%clk 0:00:06]} 124. Ra3 {[%clk 0:00:07]}  Kb6 {[%clk 0:00:06]} 125. Rc3 {[%clk 0:00:08]}  Rg1+ {[%clk 0:00:04]} 126. Kf5 {[%clk 0:00:07]}  Re1 {[%clk 0:00:03]} 127. Rd3 {[%clk 0:00:06]}  Kc5 {[%clk 0:00:04]} 128. Rd8 {[%clk 0:00:07]}  Kc6 {[%clk 0:00:04]} 129. Rc8+ {[%clk 0:00:07]}  Kd7 {[%clk 0:00:05]} 130. Rc2 {[%clk 0:00:07]}  Re3 {[%clk 0:00:05]} 131. Kf4 {[%clk 0:00:08]}  Re1 {[%clk 0:00:05]} 132. Kf3 {[%clk 0:00:09]}  Re5 {[%clk 0:00:04]} 133. Rc1 {[%clk 0:00:08]}  Re6 {[%clk 0:00:05]} 134. Kf4 {[%clk 0:00:08]}  Ke7 {[%clk 0:00:06]} 135. Kf5 {[%clk 0:00:09]}  Rf6+ {[%clk 0:00:06]} 136. Kg5 {[%clk 0:00:09]}  Re6 {[%clk 0:00:07]} 137. Ra1 {[%clk 0:00:09]}  Re1 {[%clk 0:00:05]} 138. Rxe1+ {[%clk 0:00:09]} 1-0

[Event "January 9 Early 2024"]
[Site "https://www.chess.com"]
[Date "2024.01.11"]
[Round "4"]
[White "Omelja, Artem"]
[Black "Aravindh, Chithambaram VR."]
[Result "0-1"]
[Board "1"]
[TimeControl "180+1"]
[WhiteFideId "14119846"]
[BlackFideId "5072786"]
[WhiteElo "2626"]
[BlackElo "2925"]
[WhiteTeam "UKR"]
[BlackTeam "IND"]
[WhiteClock "0:02:38"]
[BlackClock "0:02:36"]

1. e4 {[%clk 0:03:00]}  Nf6 {[%clk 0:03:00]} 2. e5 {[%clk 0:03:00]}  Nd5 {[%clk 0:03:00]} 3. d4 {[%clk 0:03:01]}  d6 {[%clk 0:03:01]} 4. c4 {[%clk 0:03:02]}  Nb6 {[%clk 0:03:01]} 5. exd6 {[%clk 0:03:02]}  cxd6 {[%clk 0:03:00]} 6. h3 {[%clk 0:03:02]}  g6 {[%clk 0:03:01]} 7. Nf3 {[%clk 0:03:02]}  Bg7 {[%clk 0:03:01]} 8. Be2 {[%clk 0:03:03]}  O-O {[%clk 0:03:02]} 9. O-O {[%clk 0:03:04]}  Nc6 {[%clk 0:03:02]} 10. Nc3 {[%clk 0:02:54]}  Bf5 {[%clk 0:03:02]} 11. d5 {[%clk 0:02:53]}  Na5 {[%clk 0:02:54]} 12. Nd4 {[%clk 0:02:53]}  Naxc4 {[%clk 0:02:48]} 13. Nxf5 {[%clk 0:02:53]}  gxf5 {[%clk 0:02:49]} 14. a4 {[%clk 0:02:52]}  Ne5 {[%clk 0:02:45]} 15. Qb3 {[%clk 0:02:44]}  Nbd7 {[%clk 0:02:41]} 16. Qxb7 {[%clk 0:02:43]}  Rb8 {[%clk 0:02:41]} 17. Qxa7 {[%clk 0:02:41]}  Nc5 {[%clk 0:02:39]} 18. Nb5 {[%clk 0:02:38]}  Rb7 {[%clk 0:02:36]} 0-1

[Event "January 9 Early 2024"]
[Site "https://www.chess.com"]
[Date "2024.01.11"]
[Round "4"]
[White "Rustemov, Alexander"]
[Black "Paravyan, David"]
[Result "1/2-1/2"]
[Board "3"]
[TimeControl "180+1"]
[WhiteFideId "4119002"]
[BlackFideId "4194985"]
[WhiteElo "2807"]
[BlackElo "3007"]
[WhiteTeam "RUS"]
[BlackTeam "FID"]
[WhiteClock "0:02:07"]
[BlackClock "0:02:49"]

1. d4 {[%clk 0:03:00]}  d5 {[%clk 0:03:00]} 2. c4 {[%clk 0:03:00]}  dxc4 {[%clk 0:03:01]} 3. Nf3 {[%clk 0:03:00]}  Nf6 {[%clk 0:03:01]} 4. e3 {[%clk 0:03:00]}  e6 {[%clk 0:03:01]} 5. Bxc4 {[%clk 0:03:00]}  c5 {[%clk 0:03:02]} 6. O-O {[%clk 0:03:00]}  Nc6 {[%clk 0:03:03]} 7. dxc5 {[%clk 0:02:55]}  Qxd1 {[%clk 0:03:03]} 8. Rxd1 {[%clk 0:02:55]}  Bxc5 {[%clk 0:03:04]} 9. a3 {[%clk 0:02:54]}  a6 {[%clk 0:03:04]} 10. b4 {[%clk 0:02:53]}  Be7 {[%clk 0:03:05]} 11. Bb2 {[%clk 0:02:53]}  b5 {[%clk 0:03:05]} 12. Be2 {[%clk 0:02:52]}  Bb7 {[%clk 0:03:05]} 13. Nbd2 {[%clk 0:02:50]}  O-O {[%clk 0:03:05]} 14. Nb3 {[%clk 0:02:49]}  a5 {[%clk 0:03:06]} 15. Bxb5 {[%clk 0:02:39]}  axb4 {[%clk 0:03:06]} 16. axb4 {[%clk 0:02:39]}  Nxb4 {[%clk 0:03:02]} 17. Rxa8 {[%clk 0:02:31]}  Rxa8 {[%clk 0:03:03]} 18. Ra1 {[%clk 0:02:31]}  Rxa1+ {[%clk 0:03:03]} 19. Bxa1 {[%clk 0:02:30]}  Ne4 {[%clk 0:02:51]} 20. Nbd2 {[%clk 0:02:23]}  Nxd2 {[%clk 0:02:47]} 21. Nxd2 {[%clk 0:02:22]}  Nd5 {[%clk 0:02:47]} 22. Nf3 {[%clk 0:02:09]}  Bf6 {[%clk 0:02:47]} 23. Bxf6 {[%clk 0:02:08]}  Nxf6 {[%clk 0:02:48]} 24. Be2 {[%clk 0:02:07]}  Bxf3 {[%clk 0:02:48]} 25. Bxf3 {[%clk 0:02:07]}  g6 {[%clk 0:02:47]} 26. g3 {[%clk 0:02:07]}  Kg7 {[%clk 0:02:47]} 27. h4 {[%clk 0:02:07]}  h6 {[%clk 0:02:48]} 28. Kg2 {[%clk 0:02:06]}  g5 {[%clk 0:02:48]} 29. hxg5 {[%clk 0:02:06]}  hxg5 {[%clk 0:02:49]} 30. Be2 {[%clk 0:02:07]}  Ne8 {[%clk 0:02:49]} 1/2-1/2

[Event "January 9 Early 2024"]
[Site "https://www.chess.com"]
[Date "2024.01.11"]
[Round "4"]
[White "Rees, Ioan"]
[Black "Michalski, Olaf"]
[Result "1-0"]
[Board "7"]
[TimeControl "180+1"]
[WhiteFideId "1801236"]
[BlackFideId "1106740"]
[WhiteElo "2392"]
[BlackElo "2152"]
[WhiteTeam "WLS"]
[BlackTeam "POL"]
[WhiteClock "0:02:26"]
[BlackClock "0:01:48"]

1. e4 {[%clk 0:02:56]}  c5 {[%clk 0:02:59]} 2. c3 {[%clk 0:02:56]}  d5 {[%clk 0:02:58]} 3. exd5 {[%clk 0:02:57]}  Qxd5 {[%clk 0:02:58]} 4. Nf3 {[%clk 0:02:57]}  Nc6 {[%clk 0:02:56]} 5. Na3 {[%clk 0:02:55]}  Bg4 {[%clk 0:02:49]} 6. Be2 {[%clk 0:02:53]}  e5 {[%clk 0:02:41]} 7. d3 {[%clk 0:02:49]}  Nf6 {[%clk 0:02:35]} 8. Nc4 {[%clk 0:02:45]}  Qd7 {[%clk 0:02:22]} 9. Nfxe5 {[%clk 0:02:38]}  Qe6 {[%clk 0:01:51]} 10. Bxg4 {[%clk 0:02:27]}  Nxg4 {[%clk 0:01:48]} 11. Qxg4 {[%clk 0:02:26]} 1-0

[Event "January 9 Early 2024"]
[Site "https://www.chess.com"]
[Date "2024.01.11"]
[Round "4"]
[White "Lysyj, Igor"]
[Black "Espinoza Villanueva, Rodrigo"]
[Result "1-0"]
[Board "8"]
[TimeControl "180+1"]
[WhiteFideId "4150120"]
[BlackFideId "5140188"]
[WhiteElo "2862"]
[BlackElo "2608"]
[WhiteTeam "FID"]
[BlackTeam "MEX"]
[WhiteClock "0:02:03"]
[BlackClock "0:02:09"]

1. d4 {[%clk 0:02:59]}  Nf6 {[%clk 0:02:59]} 2. c4 {[%clk 0:02:59]}  e6 {[%clk 0:03:00]} 3. Nf3 {[%clk 0:02:59]}  Bb4+ {[%clk 0:02:58]} 4. Bd2 {[%clk 0:02:58]}  Be7 {[%clk 0:02:58]} 5. g3 {[%clk 0:02:57]}  d5 {[%clk 0:02:57]} 6. Bg2 {[%clk 0:02:57]}  O-O {[%clk 0:02:57]} 7. O-O {[%clk 0:02:56]}  Ne4 {[%clk 0:02:57]} 8. Bf4 {[%clk 0:02:52]}  f5 {[%clk 0:02:57]} 9. Qc2 {[%clk 0:02:48]}  c6 {[%clk 0:02:56]} 10. Nc3 {[%clk 0:02:47]}  Nd7 {[%clk 0:02:56]} 11. Rad1 {[%clk 0:02:45]}  Ndf6 {[%clk 0:02:44]} 12. Ne5 {[%clk 0:02:41]}  g5 {[%clk 0:02:38]} 13. Bc1 {[%clk 0:02:40]}  Bd7 {[%clk 0:02:33]} 14. Nxe4 {[%clk 0:02:37]}  Nxe4 {[%clk 0:02:31]} 15. Qb3 {[%clk 0:02:25]}  Bc8 {[%clk 0:02:23]} 16. cxd5 {[%clk 0:02:21]}  exd5 {[%clk 0:02:21]} 17. f3 {[%clk 0:02:21]}  Nd6 {[%clk 0:02:15]} 18. e4 {[%clk 0:02:21]}  fxe4 {[%clk 0:02:13]} 19. fxe4 {[%clk 0:02:21]}  Be6 {[%clk 0:02:13]} 20. exd5 {[%clk 0:02:20]}  Bxd5 {[%clk 0:02:14]} 21. Bxd5+ {[%clk 0:02:19]}  cxd5 {[%clk 0:02:15]} 22. Qxd5+ {[%clk 0:02:19]}  Kg7 {[%clk 0:02:16]} 23. Rxf8 {[%clk 0:02:15]}  Bxf8 {[%clk 0:02:15]} 24. Rf1 {[%clk 0:02:12]}  Qe7 {[%clk 0:02:14]} 25. Ng4 {[%clk 0:02:05]}  Rd8 {[%clk 0:02:09]} 26. Bxg5 {[%clk 0:02:03]} 1-0

[Event "January 9 Early 2024"]
[Site "https://www.chess.com"]
[Date "2024.01.11"]
[Round "4"]
[White "Hernandez Santos, David Ale"]
[Black "Piscicelli, Daniel Orlando"]
[Result "1-0"]
[Board "11"]
[TimeControl "180+1"]
[WhiteFideId "5132002"]
[BlackFideId "101958"]
[WhiteElo "2001"]
[BlackElo "2259"]
[WhiteTeam "MEX"]
[BlackTeam "ARG"]
[WhiteClock "0:02:10"]
[BlackClock "0:01:46"]

1. d4 {[%clk 0:02:52]}  Nf6 {[%clk 0:02:59]} 2. Nc3 {[%clk 0:02:51]}  g6 {[%clk 0:02:59]} 3. Bf4 {[%clk 0:02:50]}  Bg7 {[%clk 0:02:58]} 4. e3 {[%clk 0:02:48]}  O-O {[%clk 0:02:57]} 5. h4 {[%clk 0:02:48]}  d5 {[%clk 0:02:49]} 6. h5 {[%clk 0:02:45]}  Nxh5 {[%clk 0:02:47]} 7. Rxh5 {[%clk 0:02:45]}  gxh5 {[%clk 0:02:47]} 8. Qxh5 {[%clk 0:02:44]}  e6 {[%clk 0:02:46]} 9. Bd3 {[%clk 0:02:39]}  h6 {[%clk 0:02:41]} 10. Nf3 {[%clk 0:02:35]}  Qf6 {[%clk 0:02:40]} 11. Bg5 {[%clk 0:02:28]}  Nd7 {[%clk 0:02:09]} 12. Bxf6 {[%clk 0:02:25]}  Nxf6 {[%clk 0:02:10]} 13. Qh2 {[%clk 0:02:23]}  Bd7 {[%clk 0:02:05]} 14. O-O-O {[%clk 0:02:20]}  a5 {[%clk 0:02:05]} 15. Ne5 {[%clk 0:02:18]}  a4 {[%clk 0:02:00]} 16. g4 {[%clk 0:02:16]}  a3 {[%clk 0:01:55]} 17. b3 {[%clk 0:02:13]}  Nh7 {[%clk 0:01:48]} 18. Bxh7+ {[%clk 0:02:09]}  Kxh7 {[%clk 0:01:46]} 19. Nxd7 {[%clk 0:02:10]} 1-0

[Event "January 9 Early 2024"]
[Site "https://www.chess.com"]
[Date "2024.01.11"]
[Round "4"]
[White "Kekic, Armin"]
[Black "Feliz Dotel, Dewar Bienvenido"]
[Result "1/2-1/2"]
[Board "18"]
[TimeControl "180+1"]
[WhiteFideId "14401274"]
[BlackFideId "6402801"]
[WhiteElo "2334"]
[BlackElo "2155"]
[WhiteTeam "BIH"]
[BlackTeam "DOM"]
[WhiteClock "0:01:57"]
[BlackClock "0:02:14"]

1. e4 {[%clk 0:03:00]}  c5 {[%clk 0:02:57]} 2. Nf3 {[%clk 0:03:00]}  g6 {[%clk 0:02:58]} 3. d4 {[%clk 0:03:00]}  cxd4 {[%clk 0:02:58]} 4. Nxd4 {[%clk 0:03:00]}  Nc6 {[%clk 0:02:59]} 5. Be3 {[%clk 0:03:00]}  Nf6 {[%clk 0:02:53]} 6. Nc3 {[%clk 0:02:59]}  Bg7 {[%clk 0:02:53]} 7. f3 {[%clk 0:02:57]}  O-O {[%clk 0:02:52]} 8. Qd2 {[%clk 0:02:56]}  d5 {[%clk 0:02:52]} 9. Nxc6 {[%clk 0:02:46]}  bxc6 {[%clk 0:02:52]} 10. exd5 {[%clk 0:02:39]}  Nxd5 {[%clk 0:02:51]} 11. Bd4 {[%clk 0:02:38]}  Nxc3 {[%clk 0:02:39]} 12. Bxc3 {[%clk 0:02:37]}  Qxd2+ {[%clk 0:02:37]} 13. Kxd2 {[%clk 0:02:29]}  Rd8+ {[%clk 0:02:37]} 14. Bd3 {[%clk 0:02:29]}  Bf5 {[%clk 0:02:37]} 15. Bxg7 {[%clk 0:02:29]}  Bxd3 {[%clk 0:02:30]} 16. cxd3 {[%clk 0:02:27]}  Kxg7 {[%clk 0:02:30]} 17. Rac1 {[%clk 0:02:26]}  Rab8 {[%clk 0:02:30]} 18. b3 {[%clk 0:02:26]}  Rd6 {[%clk 0:02:28]} 19. Rhe1 {[%clk 0:02:23]}  e6 {[%clk 0:02:27]} 20. Rc3 {[%clk 0:02:21]}  Rb5 {[%clk 0:02:26]} 21. Rec1 {[%clk 0:02:18]}  Ra5 {[%clk 0:02:24]} 22. a4 {[%clk 0:02:17]}  Rad5 {[%clk 0:02:24]} 23. Ke2 {[%clk 0:02:14]}  h5 {[%clk 0:02:18]} 24. R1c2 {[%clk 0:01:59]}  Re5+ {[%clk 0:02:15]} 25. Kf2 {[%clk 0:01:58]}  Red5 {[%clk 0:02:14]} 26. Ke2 {[%clk 0:01:57]}  Re5+ {[%clk 0:02:14]} 27. Kf2 {[%clk 0:01:57]}  Red5 {[%clk 0:02:14]} 28. Ke2 {[%clk 0:01:57]} 1/2-1/2

[Event "January 9 Early 2024"]
[Site "https://www.chess.com"]
[Date "2024.01.11"]
[Round "4"]
[White "Srihari L R"]
[Black "Chernomordik, Pavel"]
[Result "1-0"]
[Board "19"]
[TimeControl "180+1"]
[WhiteFideId "46617116"]
[BlackFideId "2804530"]
[WhiteElo "2680"]
[BlackElo "2442"]
[WhiteTeam "IND"]
[BlackTeam "ISR"]
[WhiteClock "0:02:15"]
[BlackClock "0:01:43"]

1. c4 {[%clk 0:03:00]}  g6 {[%clk 0:02:59]} 2. Nf3 {[%clk 0:02:58]}  Bg7 {[%clk 0:02:57]} 3. g3 {[%clk 0:02:58]}  e5 {[%clk 0:02:57]} 4. Nc3 {[%clk 0:02:57]}  Nc6 {[%clk 0:02:57]} 5. Bg2 {[%clk 0:02:58]}  d6 {[%clk 0:02:57]} 6. O-O {[%clk 0:02:58]}  Be6 {[%clk 0:02:56]} 7. d3 {[%clk 0:02:57]}  h6 {[%clk 0:02:56]} 8. Rb1 {[%clk 0:02:52]}  Qd7 {[%clk 0:02:55]} 9. Nd5 {[%clk 0:02:45]}  Nge7 {[%clk 0:02:50]} 10. e4 {[%clk 0:02:45]}  O-O {[%clk 0:02:39]} 11. Bxh6 {[%clk 0:02:42]}  Nxd5 {[%clk 0:02:26]} 12. Bxg7 {[%clk 0:02:40]}  Nc3 {[%clk 0:02:24]} 13. bxc3 {[%clk 0:02:39]}  Kxg7 {[%clk 0:02:24]} 14. Rxb7 {[%clk 0:02:39]}  Rh8 {[%clk 0:02:21]} 15. h4 {[%clk 0:02:32]}  Nd8 {[%clk 0:02:19]} 16. Rb1 {[%clk 0:02:31]}  f6 {[%clk 0:02:13]} 17. Nd2 {[%clk 0:02:22]}  g5 {[%clk 0:02:05]} 18. hxg5 {[%clk 0:02:20]}  fxg5 {[%clk 0:02:04]} 19. f4 {[%clk 0:02:20]}  Bh3 {[%clk 0:01:53]} 20. f5 {[%clk 0:02:18]}  Nf7 {[%clk 0:01:45]} 21. Bxh3 {[%clk 0:02:15]}  Rxh3 {[%clk 0:01:44]} 22. Qg4 {[%clk 0:02:16]}  Rah8 {[%clk 0:01:43]} 23. f6+ {[%clk 0:02:15]} 1-0

[Event "January 9 Early 2024"]
[Site "https://www.chess.com"]
[Date "2024.01.11"]
[Round "4"]
[White "Novik, Maxim"]
[Black "Martin Fuentes, Alberto"]
[Result "1-0"]
[Board "20"]
[TimeControl "180+1"]
[WhiteFideId "4102924"]
[BlackFideId "2292289"]
[WhiteElo "2487"]
[BlackElo "2621"]
[WhiteTeam "LTU"]
[BlackTeam "ESP"]
[WhiteClock "0:01:39"]
[BlackClock "0:02:00"]

1. e4 {[%clk 0:03:00]}  e6 {[%clk 0:02:52]} 2. d4 {[%clk 0:02:59]}  d5 {[%clk 0:02:52]} 3. e5 {[%clk 0:03:00]}  c5 {[%clk 0:02:52]} 4. c3 {[%clk 0:03:00]}  Qb6 {[%clk 0:02:50]} 5. Nf3 {[%clk 0:03:00]}  Bd7 {[%clk 0:02:51]} 6. Be2 {[%clk 0:03:00]}  Bb5 {[%clk 0:02:51]} 7. dxc5 {[%clk 0:02:58]}  Bxc5 {[%clk 0:02:49]} 8. O-O {[%clk 0:02:58]}  Bxe2 {[%clk 0:02:48]} 9. Qxe2 {[%clk 0:02:58]}  Nc6 {[%clk 0:02:48]} 10. b4 {[%clk 0:02:58]}  Bf8 {[%clk 0:02:45]} 11. a4 {[%clk 0:02:58]}  Nge7 {[%clk 0:02:44]} 12. a5 {[%clk 0:02:57]}  Qc7 {[%clk 0:02:43]} 13. a6 {[%clk 0:02:56]}  b6 {[%clk 0:02:42]} 14. Na3 {[%clk 0:02:56]}  Ng6 {[%clk 0:02:41]} 15. Nb5 {[%clk 0:02:54]}  Qd7 {[%clk 0:02:39]} 16. g3 {[%clk 0:02:50]}  Ncxe5 {[%clk 0:02:24]} 17. Nxe5 {[%clk 0:02:49]}  Nxe5 {[%clk 0:02:25]} 18. Bf4 {[%clk 0:02:49]}  f6 {[%clk 0:02:17]} 19. Bxe5 {[%clk 0:01:57]}  fxe5 {[%clk 0:02:16]} 20. Qh5+ {[%clk 0:01:56]}  g6 {[%clk 0:02:07]} 21. Qxe5 {[%clk 0:01:50]}  Bg7 {[%clk 0:02:07]} 22. Nc7+ {[%clk 0:01:42]}  Ke7 {[%clk 0:02:00]} 23. Qxg7+ {[%clk 0:01:39]} 1-0

[Event "January 9 Early 2024"]
[Site "https://www.chess.com"]
[Date "2024.01.11"]
[Round "4"]
[White "Skuhala, Barbara"]
[Black "Shevchuk, Olexandr"]
[Result "0-1"]
[Board "22"]
[TimeControl "180+1"]
[WhiteFideId "14605465"]
[BlackFideId "14113775"]
[WhiteElo "2287"]
[BlackElo "2500"]
[WhiteTeam "SLO"]
[BlackTeam "UKR"]
[WhiteClock "0:00:09"]
[BlackClock "0:02:52"]

1. e4 {[%clk 0:00:49]}  e6 {[%clk 0:02:58]} 2. d4 {[%clk 0:00:47]}  d5 {[%clk 0:02:59]} 3. Nc3 {[%clk 0:00:47]}  Bb4 {[%clk 0:02:58]} 4. e5 {[%clk 0:00:46]}  Ne7 {[%clk 0:02:59]} 5. Qg4 {[%clk 0:00:41]}  c5 {[%clk 0:02:59]} 6. a3 {[%clk 0:00:40]}  Qa5 {[%clk 0:02:59]} 7. Bd2 {[%clk 0:00:30]}  cxd4 {[%clk 0:02:52]} 8. Qxd4 {[%clk 0:00:30]}  Nbc6 {[%clk 0:02:53]} 9. Qg4 {[%clk 0:00:20]}  d4 {[%clk 0:02:52]} 10. Ne4 {[%clk 0:00:09]}  Bxd2+ {[%clk 0:02:52]} 0-1